bitfinex/quotes_SOLUSD_20220228
["timestamp","ask_amount","ask_price","bid_price","bid_amount"]
[1646028451482,22.914,86.939,86.88,17.2672]
[1646028451683,22.914,86.939,86.879,23.3285]
[1646028451884,22.914,86.939,86.88,6.0]
[1646028452884,22.914,86.939,86.879,23.3285]
[1646028453084,22.914,86.939,86.88,6.0]
[1646028453483,22.914,86.939,86.879,23.3285]
[1646028453884,22.914,86.939,86.88,6.0]
[1646028455084,22.914,86.939,86.879,23.3285]
[1646028455484,22.914,86.939,86.88,6.0]
[1646028456588,22.914,86.939,86.879,23.3285]
[1646028456785,22.914,86.939,86.88,6.0]
[1646028457387,6.0,86.938,86.879,23.3285]
[1646028458889,7.45926626,86.938,86.879,23.3285]
[1646028459286,17.2731,86.93,86.85,33.9231]
[1646028459487,4.602,86.929,86.863,6.0]
[1646028459686,6.0,86.928,86.863,6.0]
[1646028459887,22.8615,86.927,86.863,6.0]
[1646028460089,6.0,86.926,86.863,6.0]
[1646028461492,7.40007382,86.926,86.863,6.0]
[1646028464891,6.0,86.926,86.863,6.0]
[1646028465092,22.8615,86.927,86.863,6.0]
[1646028465493,22.8615,86.927,86.864,23.0848]
[1646028465714,22.8615,86.927,86.865,6.0]
[1646028471317,22.8615,86.927,86.87,16.65]
[1646028471519,22.8615,86.927,86.871,6.0]
[1646028472122,17.2709,86.94,86.87,16.65]
[1646028472322,6.0,86.939,86.871,6.0]
[1646028472524,6.0,86.949,86.871,6.0]
[1646028473022,8.74678921,86.949,86.871,6.0]
[1646028474325,17.271,86.94,86.871,6.0]
[1646028474528,30.3008,86.939,86.871,6.0]
[1646028476527,30.3008,86.939,86.864,23.0848]
[1646028476528,17.2728,86.93,86.864,23.0848]
[1646028476727,23.4066,86.929,86.865,6.0]
[1646028477930,6.0,86.928,86.865,6.0]
[1646028478728,23.4066,86.929,86.865,6.0]
[1646028479528,23.4066,86.929,86.866,115.3]
[1646028479730,37.81194808,86.951,86.88,16.65]
[1646028479929,24.1476,86.95,86.881,28.6604]
[1646028480628,24.1476,86.95,86.891,41.03949172]
[1646028481030,24.1476,86.95,86.892,115.3]
[1646028481232,24.1476,86.95,86.893,6.0]
[1646028481731,10.28374389,86.949,86.89,0.2935803]
[1646028481928,4.601,86.948,86.89,0.2935803]
[1646028482131,7.4884034,86.947,86.89,0.2935803]
[1646028482334,6.18198422,86.946,86.89,0.2935803]
[1646028482628,7.47684157,86.945,86.89,0.2935803]
[1646028482829,6.45282766,86.944,86.89,0.2935803]
[1646028483030,7.38769225,86.943,86.89,0.2935803]
[1646028483230,6.24106414,86.942,86.89,0.2935803]
[1646028483429,17.271,86.94,86.89,0.2935803]
[1646028483631,10.602,86.939,86.89,0.2935803]
[1646028483830,7.60219056,86.938,86.89,0.2935803]
[1646028484029,4.602,86.937,86.89,0.2935803]
[1646028484230,6.0,86.936,86.89,0.2935803]
[1646028484431,17.2734,86.93,86.89,0.2935803]
[1646028484631,10.602,86.929,86.89,0.2935803]
[1646028485231,23.9324,86.928,86.89,0.2935803]
[1646028485431,10.602,86.927,86.89,0.2935803]
[1646028488733,17.275,86.92,86.89,0.2935803]
[1646028488939,12.33538585,86.919,86.89,0.2935803]
[1646028489138,115.3,86.918,86.89,0.2935803]
[1646028489337,115.3,86.914,86.845,4.602]
[1646028489534,1.71252344,86.912,86.845,4.602]
[1646028489734,1.6795139,86.91,86.845,4.602]
[1646028490040,17.2817,86.89,86.845,4.602]
[1646028490434,6.0,86.889,86.845,4.602]
[1646028492435,10.604,86.889,86.845,4.602]
[1646028493440,37.81194808,86.879,86.845,4.602]
[1646028493641,6.0,86.878,86.845,4.602]
[1646028493840,6.0,86.878,86.822,5.35812778]
[1646028494042,45.0,86.877,86.77,23.0373]
[1646028494244,45.0,86.877,86.731,16.9764]
[1646028494245,115.3,86.876,86.731,16.9764]
[1646028494449,115.3,86.869,86.731,16.9764]
[1646028494647,117.2909948,86.859,86.713,112.6]
[1646028494947,115.3,86.857,86.713,129.6201]
[1646028495251,1.97391485,86.838,86.713,17.0201]
[1646028495447,2.05188064,86.828,86.713,17.0201]
[1646028495747,4.609,86.827,86.713,17.0201]
[1646028495947,115.3,86.825,86.714,6.0]
[1646028496149,6.40686322,86.824,86.714,6.0]
[1646028496347,1.81056733,86.809,86.714,6.0]
[1646028496549,4.61,86.808,86.702,44.52667633]
[1646028496749,4.61,86.808,86.703,6.0]
[1646028496750,47.4918,86.807,86.703,6.0]
[1646028496948,6.37780337,86.806,86.703,6.0]
[1646028497249,9.12459258,86.806,86.669,39.96071738]
[1646028497449,1.98783431,86.799,86.67,16.65]
[1646028497648,2.10081079,86.789,86.67,16.65]
[1646028497851,2.29855234,86.787,86.686,22.53451738]
[1646028498053,4.611,86.786,86.695,43.26914768]
[1646028498249,6.0,86.785,86.695,43.26914768]
[1646028498449,1.89991569,86.769,86.695,43.26914768]
[1646028498650,6.0,86.768,86.696,6.0]
[1646028499052,1.89991569,86.769,86.695,43.26914768]
[1646028499255,6.0,86.768,86.695,43.26914768]
[1646028499478,4.611,86.767,86.695,43.26914768]
[1646028499679,6.0,86.766,86.67,16.65]
[1646028499978,1.80613329,86.759,86.64,16.65]
[1646028500180,4.612,86.758,86.636,112.6]
[1646028500381,6.0,86.757,86.64,16.65]
[1646028500579,6.0,86.757,86.65,16.65]
[1646028500779,6.0,86.757,86.684,48.96022473]
[1646028500981,6.0,86.758,86.684,48.96022473]
[1646028501581,2.06146243,86.749,86.684,48.96022473]
[1646028501780,6.0,86.748,86.684,48.96022473]
[1646028502182,6.0,86.748,86.65,33.9611]
[1646028502383,9.2262383,86.747,86.64,16.65]
[1646028502885,16.65,86.76,86.64,16.65]
[1646028502886,6.0,86.746,86.64,16.65]
[1646028503181,4.612,86.745,86.679,57.11311041]
[1646028503383,6.0,86.744,86.679,57.11311041]
[1646028503585,17.3122,86.74,86.679,57.11311041]
[1646028503782,6.0,86.739,86.679,57.11311041]
[1646028504183,6.0,86.739,86.694,51.71687116]
[1646028504584,6.0,86.757,86.694,50.85888675]
[1646028504785,2.06807829,86.763,86.694,50.85888675]
[1646028504985,6.30932596,86.799,86.7,16.65]
[1646028505185,1.83695061,86.818,86.701,125.91]
[1646028505388,2.12395402,86.825,86.701,62.44284204]
[1646028505585,1.78399017,86.809,86.721,42.79671996]
[1646028505786,1.78399017,86.809,86.722,6.0]
[1646028505988,2.24624321,86.807,86.722,6.0]
[1646028506386,1.76364003,86.798,86.721,6.0]
[1646028506587,17.3034,86.79,86.701,10.61]
[1646028506788,6.79394383,86.789,86.701,6.0]
[1646028506985,6.0,86.788,86.694,6.0]
[1646028507187,6.53971217,86.787,86.695,51.86597282]
[1646028507387,8.09865868,86.786,86.696,6.0]
[1646028507589,17.3043,86.78,86.696,6.0]
[1646028507890,17.3043,86.78,86.695,51.86597282]
[1646028507891,1.78276438,86.778,86.695,51.86597282]
[1646028508086,10.611,86.777,86.695,51.86597282]
[1646028508288,2.30805551,86.776,86.695,51.86597282]
[1646028508487,6.0,86.775,86.695,51.86597282]
[1646028508687,6.0,86.775,86.696,6.0]
[1646028509287,2.74678921,86.775,86.681,6.0]
[1646028509489,29.6162,86.774,86.681,6.0]
[1646028509687,6.45233722,86.773,86.681,6.0]
[1646028509890,8.03567208,86.772,86.681,6.0]
[1646028510087,8.03567208,86.772,86.68,16.65]
[1646028510088,1.8952172,86.769,86.682,57.21971136]
[1646028510289,10.612,86.768,86.682,57.21971136]
[1646028510493,1.69529699,86.767,86.682,57.21971136]
[1646028510690,6.0,86.766,86.682,57.21971136]
[1646028511190,8.74678921,86.766,86.682,57.21971136]
[1646028511592,17.3103,86.75,86.682,57.21971136]
[1646028511793,8.0219924,86.749,86.682,57.21971136]
[1646028512291,2.23417156,86.764,86.682,57.21971136]
[1646028512491,6.0,86.763,86.682,57.21971136]
[1646028512691,1.88049199,86.759,86.683,115.3]
[1646028512892,4.612,86.787,86.685,115.3]
[1646028513096,6.50843379,86.797,86.703,115.3]
[1646028513291,6.0,86.796,86.71,16.65]
[1646028513492,8.29222557,86.796,86.71,16.65]
[1646028513693,4.61,86.795,86.71,16.65]
[1646028513893,6.0,86.794,86.71,16.65]
[1646028514092,4.61,86.793,86.71,16.65]
[1646028514295,6.0,86.792,86.711,6.0]
[1646028514493,17.3018,86.79,86.711,6.0]
[1646028514695,8.19553293,86.789,86.711,6.0]
[1646028515094,2.19553293,86.789,86.711,6.0]
[1646028515293,6.0,86.788,86.711,6.0]
[1646028517497,6.0,86.788,86.711,8.74678921]
[1646028518301,17.3033,86.78,86.711,8.74678921]
[1646028518498,8.03219556,86.779,86.711,8.74678921]
[1646028518697,8.03219556,86.779,86.711,2.74678921]
[1646028519098,2.03219556,86.779,86.712,6.0]
[1646028520397,2.03219556,86.779,86.711,6.0]
[1646028520599,2.03219556,86.779,86.71,16.65]
[1646028521001,6.0,86.778,86.711,6.0]
[1646028521399,6.0,86.778,86.71,16.65]
[1646028521898,6.0,86.778,86.711,6.0]
[1646028522703,6.0,86.778,86.71,16.65]
[1646028524408,17.305,86.77,86.702,52.49070374]
[1646028524606,7.7487356,86.769,86.681,4.611]
[1646028524804,12.3607356,86.769,86.682,6.0]
[1646028525006,4.66403363,86.768,86.675,6.0]
[1646028525207,115.3,86.766,86.664,4.612]
[1646028525405,115.3,86.764,86.665,6.0]
[1646028525630,115.3,86.764,86.651,4.612]
[1646028525631,2.28160779,86.763,86.666,4.612]
[1646028525829,10.612,86.762,86.667,64.57376997]
[1646028526136,1.78348572,86.761,86.667,64.57376997]
[1646028526327,1.7991528,86.759,86.667,64.57376997]
[1646028526528,1.6988856,86.749,86.667,64.57376997]
[1646028526729,2.12640062,86.747,86.667,64.57376997]
[1646028527031,6.0,86.746,86.667,6.0]
[1646028527228,6.37820304,86.745,86.651,6.0]
[1646028527427,115.3,86.743,86.64,16.65]
[1646028527630,12.6055544,86.742,86.641,10.614]
[1646028527928,1.93735461,86.741,86.642,56.93433867]
[1646028528229,6.0,86.74,86.643,10.614]
[1646028528631,1.76389811,86.739,86.643,10.614]
[1646028528830,29.6712,86.738,86.643,10.614]
[1646028529028,1.79420871,86.737,86.643,10.614]
[1646028529230,6.0,86.736,86.643,10.614]
[1646028529429,24.912,86.735,86.643,6.0]
[1646028529631,7.94854438,86.734,86.643,6.0]
[1646028529830,19.58533359,86.734,86.643,6.0]
[1646028530031,2.20491222,86.733,86.643,6.0]
[1646028530229,6.0,86.732,86.643,6.0]
[1646028530428,17.3148,86.72,86.643,6.0]
[1646028530629,7.9706526,86.719,86.643,6.0]
[1646028531630,17.3169,86.71,86.63,17.3169]
[1646028531830,7.76377531,86.709,86.62,16.65]
[1646028532032,6.0,86.709,86.61,89.9254]
[1646028532231,6.0,86.709,86.613,16.9607]
[1646028532432,6.0,86.715,86.613,16.9607]
[1646028532632,6.0,86.715,86.615,60.55243661]
[1646028532832,115.3,86.714,86.615,60.55243661]
[1646028533036,2.09599178,86.699,86.616,6.0]
[1646028533240,1.71538795,86.698,86.616,6.0]
[1646028533437,2.16777072,86.696,86.616,6.0]
[1646028533636,4.615,86.695,86.609,17.332]
[1646028533839,2.00915738,86.692,86.59,16.65]
[1646028534037,2.28527641,86.679,86.59,33.9751]
[1646028534236,2.19676457,86.677,86.59,16.65]
[1646028534443,28.4463,86.678,86.57,65.0880312]
[1646028534444,117.40279856,86.675,86.57,65.0880312]
[1646028534637,1.86468469,86.672,86.57,43.8210312]
[1646028534837,4.617,86.671,86.57,60.4710312]
[1646028535245,115.3,86.659,86.57,16.65]
[1646028535438,115.3,86.657,86.57,16.65]
[1646028535640,12.5979304,86.656,86.571,6.0]
[1646028535838,115.3,86.654,86.554,6.0]
[1646028536039,115.3,86.654,86.555,4.618]
[1646028536040,1.7789559,86.653,86.555,4.618]
[1646028536341,1.7789559,86.653,86.55,16.65]
[1646028536342,1.82763704,86.651,86.55,16.65]
[1646028536539,4.618,86.65,86.55,16.65]
[1646028536740,1.92020504,86.647,86.55,16.65]
[1646028536941,2.12420304,86.645,86.55,16.65]
[1646028537143,17.3332,86.64,86.55,33.9832]
[1646028537344,7.83666619,86.639,86.551,6.0]
[1646028537542,6.0,86.639,86.551,6.0]
[1646028537742,6.0,86.639,86.546,46.4873]
[1646028537743,29.0463,86.638,86.546,46.4873]
[1646028537941,121.3,86.637,86.546,46.4873]
[1646028538242,2.22115281,86.634,86.546,46.4873]
[1646028538441,115.3,86.632,86.531,2.74678921]
[1646028538643,17.3326,86.63,86.54,17.3355]
[1646028538845,12.3635271,86.629,86.546,2.74678921]
[1646028539042,10.619,86.629,86.547,57.32969231]
[1646028539241,1.9474017,86.628,86.547,57.32969231]
[1646028539441,6.0,86.627,86.547,57.32969231]
[1646028539643,6.0,86.627,86.548,6.0]
[1646028539844,1.64522801,86.619,86.547,6.0]
[1646028540044,6.0,86.618,86.547,6.0]
[1646028540243,2.01295308,86.617,86.547,6.0]
[1646028540443,7.94873037,86.616,86.531,6.0]
[1646028540642,2.09687592,86.615,86.532,50.18910184]
[1646028540845,6.0,86.614,86.533,6.0]
[1646028541545,1.90106094,86.609,86.533,8.74678921]
[1646028541743,6.0,86.608,86.533,6.0]
[1646028542948,2.20700907,86.599,86.523,2.74678921]
[1646028543152,2.20700907,86.599,86.503,25.4930896]
[1646028543356,2.01293403,86.597,86.501,2.74678921]
[1646028543650,6.0,86.596,86.501,2.74678921]
[1646028543850,6.0,86.596,86.516,46.41702509]
[1646028544051,17.3407,86.59,86.516,46.41702509]
[1646028544251,7.81787681,86.589,86.52,17.3407]
[1646028544455,7.81787681,86.589,86.521,6.0]
[1646028544651,7.81787681,86.589,86.517,6.0]
[1646028545252,7.81787681,86.589,86.516,6.0]
[1646028545451,17.3429,86.58,86.515,4.619]
[1646028545655,8.19639621,86.579,86.515,4.619]
[1646028545852,6.0,86.579,86.515,4.619]
[1646028546053,1.73775525,86.596,86.515,4.619]
[1646028546255,6.0,86.595,86.515,4.619]
[1646028546455,2.74678921,86.579,86.516,54.8105078]
[1646028546657,6.0,86.578,86.516,54.8105078]
[1646028547353,6.0,86.578,86.515,4.619]
[1646028547557,6.0,86.578,86.491,115.3]
[1646028547759,1.85315297,86.593,86.493,115.3]
[1646028547959,1.85315297,86.593,86.495,115.3]
[1646028548157,17.3427,86.58,86.501,115.3]
[1646028548359,1.85315297,86.593,86.502,59.64684413]
[1646028548956,1.85315297,86.593,86.502,6.0]
[1646028549270,17.3407,86.59,86.5,17.3434]
[1646028549460,57.8283,86.58,86.482,46.569]
[1646028549658,1.97150446,86.578,86.482,46.569]
[1646028549858,4.622,86.577,86.482,46.569]
[1646028550262,115.3,86.576,86.479,44.55974621]
[1646028550459,26.36838142,86.577,86.48,17.349]
[1646028550460,115.3,86.569,86.48,17.349]
[1646028550680,57.8403,86.56,86.46,45.8109]
[1646028550863,119.923,86.559,86.46,45.8109]
[1646028551061,2.00018147,86.558,86.438,23.3119]
[1646028551363,2.01835573,86.555,86.439,43.15967187]
[1646028551560,4.624,86.554,86.439,43.15967187]
[1646028551762,4.624,86.554,86.44,17.3565]
[1646028551763,115.3,86.549,86.44,17.3565]
[1646028551959,115.3,86.539,86.44,17.3565]
[1646028552159,115.3,86.537,86.44,17.3565]
[1646028552361,115.3,86.535,86.42,16.65]
[1646028552561,16.65,86.53,86.419,45.8109]
[1646028552763,6.58894002,86.529,86.42,44.38844648]
[1646028552963,1.96394002,86.529,86.42,61.03844648]
[1646028553162,117.26394002,86.529,86.42,61.03844648]
[1646028553362,115.3,86.527,86.42,61.03844648]
[1646028553562,17.3573,86.52,86.43,17.3586]
[1646028553761,2.1777631,86.519,86.431,6.0]
[1646028553961,115.3,86.525,86.431,6.0]
[1646028553962,1.9569469,86.517,86.431,6.0]
[1646028554265,2.0733741,86.515,86.431,6.0]
[1646028554461,10.625,86.514,86.431,6.0]
[1646028554661,2.07283821,86.513,86.431,6.0]
[1646028554860,6.0,86.512,86.431,6.0]
[1646028555062,17.3597,86.5,86.431,6.0]
[1646028555262,17.3597,86.5,86.421,6.0]
[1646028555263,7.9043509,86.499,86.421,6.0]
[1646028555463,7.9043509,86.499,86.398,2.74678921]
[1646028555464,115.3,86.498,86.398,2.74678921]
[1646028555663,1.96153989,86.495,86.35,47.1064]
[1646028555863,2.14012764,86.492,86.35,64.5722]
[1646028556063,17.3666,86.47,86.36,17.3711]
[1646028556263,2.09947666,86.469,86.361,115.3]
[1646028556471,6.0,86.468,86.363,115.3]
[1646028556868,6.0,86.468,86.371,115.3]
[1646028557163,6.0,86.477,86.373,115.3]
[1646028557364,1.89583342,86.489,86.391,115.3]
[1646028557664,6.0,86.488,86.393,115.3]
[1646028557868,6.0,86.496,86.401,115.3]
[1646028558169,6.0,86.496,86.4,57.8612]
[1646028558170,6.0,86.497,86.411,58.18741547]
[1646028558364,1.94117801,86.489,86.411,58.18741547]
[1646028558563,6.0,86.488,86.412,115.3]
[1646028558766,6.0,86.488,86.413,6.0]
[1646028558966,2.04293649,86.517,86.412,6.0]
[1646028559165,23.4628,86.518,86.413,2.74678921]
[1646028559389,2.08438033,86.529,86.414,6.0]
[1646028559586,2.08438033,86.529,86.42,17.3592]
[1646028559786,2.08438033,86.529,86.421,6.0]
[1646028559991,4.625,86.528,86.421,6.0]
[1646028560187,117.12429504,86.527,86.421,6.0]
[1646028560391,6.73176796,86.526,86.42,16.65]
[1646028560587,1.85027386,86.524,86.401,4.625]
[1646028560794,115.3,86.509,86.4,17.3641]
[1646028560988,115.3,86.507,86.4,17.3641]
[1646028561187,12.28794078,86.506,86.4,17.3641]
[1646028561388,2.07429468,86.505,86.4,17.3641]
[1646028561589,115.3,86.503,86.4,17.3641]
[1646028561791,115.3,86.501,86.4,17.3641]
[1646028561991,2.10693222,86.479,86.381,48.2464]
[1646028562187,10.628,86.478,86.382,6.0]
[1646028562388,1.95463945,86.477,86.382,6.0]
[1646028562586,10.628,86.476,86.382,6.0]
[1646028562787,2.16764737,86.475,86.383,51.663663]
[1646028562987,10.628,86.474,86.384,6.0]
[1646028563187,10.628,86.474,86.37,4.628]
[1646028563188,17.3656,86.47,86.37,4.628]
[1646028563487,17.3656,86.47,86.284,72.1537]
[1646028563488,115.3,86.468,86.345,47.6347]
[1646028563688,115.3,86.466,86.35,16.65]
[1646028563888,115.3,86.464,86.351,4.628]
[1646028564089,115.3,86.459,86.351,59.79695025]
[1646028564290,17.3729,86.44,86.36,17.3714]
[1646028564493,2.15272301,86.458,86.361,6.0]
[1646028564692,6.0,86.457,86.353,115.3]
[1646028564892,6.0,86.457,86.355,115.3]
[1646028565090,6.0,86.457,86.357,115.3]
[1646028565289,6.0,86.457,86.354,4.628]
[1646028565491,4.628,86.456,86.351,59.79695025]
[1646028565691,6.0,86.455,86.351,59.79695025]
[1646028565893,17.3695,86.45,86.37,17.3695]
[1646028566091,7.81413559,86.449,86.371,53.68169519]
[1646028566492,6.0,86.449,86.371,53.68169519]
[1646028566793,6.0,86.457,86.371,53.68169519]
[1646028567192,17.3721,86.44,86.371,53.68169519]
[1646028567393,7.82797472,86.439,86.371,53.68169519]
[1646028568395,1.82797472,86.439,86.371,53.68169519]
[1646028569197,6.0,86.438,86.371,53.68169519]
[1646028571003,6.0,86.438,86.372,115.3]
[1646028571199,1.80124185,86.458,86.381,115.3]
[1646028571398,6.0,86.457,86.385,115.3]
[1646028571598,6.0,86.457,86.387,115.3]
[1646028571798,6.0,86.457,86.388,6.0]
[1646028571998,6.0,86.473,86.388,6.0]
[1646028572200,17.3671,86.47,86.388,6.0]
[1646028572399,7.68328178,86.469,86.385,6.0]
[1646028573000,7.68328178,86.469,86.37,16.65]
[1646028573001,7.68328178,86.469,86.36,16.65]
[1646028573198,148.52006197,86.468,86.361,6.0]
[1646028573400,115.3,86.466,86.351,6.0]
[1646028573600,115.3,86.464,86.347,6.0]
[1646028573799,121.84352062,86.463,86.347,6.0]
[1646028574098,2.02815285,86.462,86.348,50.7832103]
[1646028574298,1.73365151,86.46,86.349,6.0]
[1646028574498,4.628,86.459,86.37,17.3709]
[1646028574698,1.82796139,86.457,86.37,17.3709]
[1646028574902,4.628,86.456,86.37,17.3709]
[1646028575099,1.82796139,86.457,86.37,17.3709]
[1646028575299,115.3,86.455,86.349,6.0]
[1646028575500,115.3,86.453,86.345,47.6347]
[1646028575703,1.95715951,86.448,86.345,47.6347]
[1646028575904,17.3725,86.44,86.345,47.6347]
[1646028576105,17.3725,86.44,86.331,60.93273374]
[1646028576106,2.17630763,86.438,86.331,60.93273374]
[1646028576307,4.63,86.437,86.332,6.0]
[1646028576503,115.3,86.436,86.322,112.6]
[1646028576704,115.3,86.434,86.322,112.6]
[1646028576903,115.3,86.419,86.322,112.6]
[1646028577205,115.3,86.417,86.306,56.40203096]
[1646028577407,57.9492,86.4,86.292,115.3]
[1646028577606,57.9492,86.4,86.29,57.9404]
[1646028577607,115.3,86.398,86.29,57.9404]
[1646028577804,4.632,86.397,86.286,48.0064]
[1646028578004,1.90831435,86.396,86.286,48.0064]
[1646028578206,1.86201745,86.393,86.286,48.0064]
[1646028578504,2.05039958,86.391,86.287,60.24424367]
[1646028578703,4.632,86.39,86.287,60.24424367]
[1646028578904,7.74262911,86.389,86.288,6.0]
[1646028579104,4.632,86.388,86.288,6.0]
[1646028579305,1.80919881,86.369,86.29,17.3861]
[1646028579505,1.80919881,86.369,86.291,6.0]
[1646028579707,1.75050281,86.387,86.292,115.3]
[1646028579908,1.75050281,86.387,86.294,114.8]
[1646028580109,1.75050281,86.387,86.296,114.8]
[1646028580306,1.75050281,86.387,86.297,125.432]
[1646028580507,1.75050281,86.387,86.297,114.8]
[1646028580707,1.75050281,86.387,86.298,6.0]
[1646028581307,1.75050281,86.387,86.301,114.8]
[1646028581512,1.75050281,86.387,86.303,114.8]
[1646028581708,1.75050281,86.387,86.305,114.8]
[1646028581908,1.75050281,86.387,86.307,114.8]
[1646028582110,1.75050281,86.387,86.308,6.0]
[1646028582309,1.75050281,86.387,86.3,17.3806]
[1646028582514,4.80394728,86.386,86.301,6.0]
[1646028582708,4.632,86.385,86.301,6.0]
[1646028582907,4.80394728,86.386,86.301,6.0]
[1646028582908,6.0,86.384,86.301,6.0]
[1646028583108,6.0,86.385,86.302,58.99649392]
[1646028583307,6.0,86.385,86.303,6.0]
[1646028583509,17.3848,86.37,86.303,6.0]
[1646028583810,6.0,86.369,86.29,17.3885]
[1646028584008,6.0,86.369,86.271,112.6]
[1646028584009,8.74678921,86.369,86.271,112.6]
[1646028584210,4.633,86.368,86.271,112.6]
[1646028584412,115.3,86.359,86.252,23.6797]
[1646028584613,17.3933,86.33,86.241,2.74678921]
[1646028584811,2.07600044,86.329,86.26,17.3944]
[1646028585014,2.74678921,86.329,86.227,47.1721]
[1646028585212,1.83203918,86.326,86.223,4.635]
[1646028585414,115.3,86.324,86.222,112.6]
[1646028585632,13.91,86.32,86.224,57.48361748]
[1646028585812,8.16063342,86.319,86.224,57.48361748]
[1646028586011,8.16063342,86.319,86.2,13.91]
[1646028586012,2.16063342,86.319,86.22,17.4008]
[1646028586212,115.3,86.317,86.22,17.4008]
[1646028586416,1.81988136,86.314,86.191,2.74678921]
[1646028586613,13.91,86.3,86.138,74.3285]
[1646028586813,17.4098,86.26,86.157,2.74678921]
[1646028587012,7.90774842,86.259,86.158,51.20688663]
[1646028587212,7.90774842,86.259,86.16,17.4099]
[1646028587511,7.90774842,86.259,86.161,6.0]
[1646028587512,6.0,86.259,86.161,6.0]
[1646028587714,1.79692325,86.277,86.162,4.639]
[1646028587912,6.0,86.276,86.163,6.0]
[1646028588111,6.0,86.276,86.164,4.639]
[1646028588312,6.0,86.276,86.165,6.0]
[1646028588613,6.0,86.276,86.171,47.81132463]
[1646028588812,6.0,86.276,86.172,6.0]
[1646028589212,17.4071,86.27,86.172,6.0]
[1646028589412,7.66990953,86.269,86.172,6.0]
[1646028589612,7.66990953,86.269,86.171,47.81132463]
[1646028590216,17.4091,86.26,86.171,47.81132463]
[1646028590413,7.74733405,86.259,86.171,47.81132463]
[1646028590713,10.49412326,86.259,86.171,47.81132463]
[1646028590913,7.74733405,86.259,86.172,6.0]
[1646028591515,10.49412326,86.259,86.171,47.81132463]
[1646028591716,2.2425188,86.249,86.17,17.407]
[1646028591914,6.0,86.248,86.17,17.407]
[1646028592517,8.74678921,86.248,86.15,17.4135]
[1646028592720,17.416,86.23,86.229,0.00463625]
[1646028592919,6.0,86.23,86.229,0.00463625]
[1646028593143,8.74678921,86.23,86.229,0.00463625]
[1646028593340,124.04678921,86.23,86.229,0.00463625]
[1646028593542,177.6779709,86.23,86.229,0.00463625]
[1646028593744,115.3,86.228,86.088,4.638]
[1646028593942,115.3,86.228,86.079,57.77317243]
[1646028593943,4.641,86.227,86.079,57.77317243]
[1646028594142,115.3,86.219,86.079,57.77317243]
[1646028594344,10.641,86.218,86.052,4.641]
[1646028594542,115.3,86.189,86.07,17.4293]
[1646028594742,31.3378,86.18,86.05,58.0976]
[1646028594943,115.3,86.178,86.032,4.642]
[1646028595142,4.642,86.177,86.016,4.642]
[1646028595353,115.3,86.169,86.001,60.06416766]
[1646028595542,58.1488,86.13,85.984,73.0532]
[1646028595742,17.4447,86.12,85.982,4.646]
[1646028595943,115.3,86.118,85.962,16.0677]
[1646028596142,115.3,86.116,85.964,2.74678921]
[1646028596341,10.648,86.115,85.992,246.56843059]
[1646028596544,10.648,86.115,85.964,2.74678921]
[1646028596545,13.91,86.1,85.993,53.87430093]
[1646028596844,13.91,86.1,85.961,139.68479364]
[1646028596845,6.0,86.099,85.939,0.85798441]
[1646028597242,6.0,86.099,85.94,41.38727127]